bitfinex/quotes_SOLUSD_20250924
["timestamp","ask_amount","ask_price","bid_price","bid_amount"]
[1758754500400,1.88751186,211.74,211.73,4.72299626]
[1758754501513,2.54751186,211.74,211.73,4.72299626]
[1758754501920,1.88751186,211.74,211.73,4.72299626]
[1758754502415,1.88751186,211.74,211.71,16.53204855]
[1758754502589,26.66,211.76,211.71,17.20204855]
[1758754502792,1.88751186,211.73,211.71,17.20204855]
[1758754503020,1.88751186,211.73,211.71,16.53204855]
[1758754503715,1.88751186,211.73,211.71,17.20204855]
[1758754504523,1.88751186,211.73,211.71,16.53204855]
[1758754504727,1.88751186,211.74,211.72,0.67]
[1758754505525,1.88751186,211.76,211.73,0.67]
[1758754505732,3.17906779,211.75,211.73,0.67]
[1758754505918,2.54751186,211.75,211.71,16.53204855]
[1758754506102,1.88751186,211.74,211.71,17.20204855]
[1758754506726,1.88751186,211.74,211.72,0.67]
[1758754506935,1.88751186,211.75,211.72,0.67]
[1758754507102,1.88751186,211.75,211.73,0.67]
[1758754507298,26.0,211.79,211.74,0.67]
[1758754507299,3.17823664,211.78,211.74,0.67]
[1758754507500,1.88751186,211.79,211.74,0.67]
[1758754507703,14.20084732,211.86,211.75,13.59559401]
[1758754508010,31.06515928,211.85,211.79,1.88751186]
[1758754508206,27.88751186,211.85,211.8,36.48]
[1758754508520,0.66,211.87,211.81,0.67]
[1758754508705,1.88751186,211.85,211.82,16.5234633]
[1758754508908,1.88751186,211.85,211.82,17.1934633]
[1758754510019,2.54751186,211.84,211.8,4.72143531]
[1758754510324,1.88751186,211.82,211.8,4.72143531]
[1758754510836,2.54751186,211.81,211.79,4.72165824]
[1758754511125,1.88751186,211.8,211.79,4.72165824]
[1758754511621,0.66,211.83,211.79,4.72165824]
[1758754512022,38.27018485,211.86,211.79,4.72165824]
[1758754512221,0.66,211.82,211.79,4.72165824]
[1758754512805,30.72013741,211.86,211.78,16.52631634]
[1758754513111,1.88751186,211.8,211.78,16.52631634]
[1758754513422,1.88751186,211.8,211.78,17.19631634]
[1758754513823,1.88751186,211.8,211.78,16.52631634]
[1758754514204,1.88751186,211.8,211.78,12.47443515]
[1758754514614,2.54751186,211.79,211.66,1.88751186]
[1758754514929,0.66,211.78,211.69,14.86883096]
[1758754515105,1.88751186,211.72,211.7,12.47900242]
[1758754515425,1.88751186,211.73,211.71,0.67]
[1758754516430,1.88751186,211.73,211.72,4.72321934]
[1758754516939,1.88751186,211.75,211.72,17.2012677]
[1758754517102,1.88751186,211.75,211.73,0.67]
[1758754517611,1.88751186,211.74,211.73,0.67]
[1758754517930,1.88751186,211.74,211.72,16.5312677]
[1758754518143,1.88751186,211.74,211.72,17.2012677]
[1758754518301,1.88751186,211.74,211.72,16.5312677]
[1758754518506,1.88751186,211.76,211.73,0.67]
[1758754518717,1.88751186,211.76,211.74,0.67]
[1758754518920,1.88751186,211.75,211.69,40.15305398]
[1758754519125,1.88751186,211.76,211.7,0.67]
[1758754520321,1.88751186,211.75,211.7,0.67]
[1758754520838,1.88751186,211.75,211.71,16.53204855]
[1758754521133,1.88751186,211.75,211.72,0.71]
[1758754521435,0.66,211.79,211.73,0.71]
[1758754521644,26.66,211.79,211.73,0.71]
[1758754521944,1.88751186,211.76,211.73,0.71]
[1758754522111,1.88751186,211.76,211.74,4.72277321]
[1758754523633,26.0,211.79,211.74,16.52970624]
[1758754523817,14.20286424,211.84,211.75,0.71]
[1758754523818,1.88751186,211.81,211.75,0.71]
[1758754524018,1.88751186,211.82,211.75,2.59751186]
[1758754524217,1.88751186,211.8,211.77,16.52736458]
[1758754524417,1.88751186,211.79,211.77,16.52736458]
[1758754524931,1.88751186,211.8,211.77,17.23736458]
[1758754525811,1.88751186,211.8,211.77,16.52736458]
[1758754526212,1.88751186,211.79,211.77,16.52736458]
[1758754526840,1.88751186,211.79,211.77,17.23736458]
[1758754527435,1.88751186,211.79,211.77,16.52736458]
[1758754527812,1.88751186,211.81,211.78,0.71]
[1758754528432,1.88751186,211.8,211.77,16.52736458]
[1758754528634,1.88751186,211.79,211.77,16.52736458]
[1758754528840,1.88751186,211.81,211.78,0.71]
[1758754529221,1.88751186,211.81,211.77,16.52736458]
[1758754529438,1.88751186,211.8,211.77,17.23736458]
[1758754530043,1.88751186,211.79,211.77,16.52736458]
[1758754530229,1.88751186,211.79,211.73,1.88751186]
[1758754530230,1.88751186,211.78,211.75,4.72241718]
[1758754530421,1.88751186,211.76,211.75,4.72241718]
[1758754531843,1.88751186,211.76,211.74,4.72277321]
[1758754532051,1.88751186,211.75,211.74,4.72277321]
[1758754532828,1.88751186,211.77,211.74,17.23970624]
[1758754533041,1.88751186,211.77,211.75,0.71]
[1758754533735,1.88751186,211.77,211.74,16.52970624]
[1758754533934,1.88751186,211.77,211.74,17.23970624]
[1758754535433,1.88751186,211.76,211.74,17.23970624]
[1758754537947,0.71,211.79,211.74,17.23970624]
[1758754538122,1.88751186,211.76,211.74,16.52970624]
[1758754538326,1.88751186,211.77,211.75,0.71]
[1758754538721,1.88751186,211.77,211.74,16.52970624]
[1758754538925,26.0,211.79,211.76,0.71]
[1758754539142,1.88751186,211.8,211.77,0.71]
[1758754540021,1.88751186,211.8,211.78,4.72188119]
[1758754540226,31.77203984,211.79,211.74,36.48]
[1758754540441,1.88751186,211.77,211.74,37.19]
[1758754540647,1.88751186,211.77,211.75,0.71]
[1758754541449,1.88751186,211.77,211.76,4.72232716]
[1758754541653,1.88751186,211.78,211.76,5.43232716]
[1758754541830,27.88751186,211.79,211.76,4.72232716]
[1758754542033,27.88751186,211.79,211.77,0.71]
[1758754542948,27.88751186,211.79,211.76,11.8058179]
[1758754543126,1.88751186,211.79,211.76,12.5158179]
[1758754543333,1.88751186,211.79,211.77,0.71]
[1758754544022,1.88751186,211.79,211.78,4.72188119]
[1758754544574,3.17426392,211.81,211.78,4.72188119]
[1758754544575,1.88751186,211.81,211.78,17.23658418]
[1758754544751,1.88751186,211.79,211.78,16.52658418]
[1758754545743,1.88751186,211.79,211.72,1.88751186]
[1758754545744,2.59751186,211.79,211.74,36.48]
[1758754545935,1.88751186,211.75,211.74,36.48]
[1758754546135,1.88751186,211.75,211.74,41.20277321]
[1758754550746,1.88751186,211.76,211.74,41.20277321]
[1758754552063,1.88751186,211.77,211.75,0.71]
[1758754552557,1.88751186,211.77,211.74,53.00970624]
[1758754552731,1.88751186,211.77,211.74,53.71970624]
[1758754553454,1.88751186,211.77,211.74,53.00970624]
[1758754553640,1.88751186,211.76,211.74,41.20277321]
[1758754558634,0.71,211.79,211.74,41.20277321]
[1758754558834,2.94823569,211.76,211.74,41.91277321]
[1758754559137,2.94823569,211.77,211.74,41.91277321]
[1758754559338,3.17734522,211.76,211.74,41.91277321]
[1758754559545,26.0,211.76,211.75,0.71]
[1758754559841,29.177415,211.76,211.75,0.71]
[1758754560950,29.177415,211.76,211.75,5.43255017]
[1758754561153,29.177415,211.76,211.75,4.72255017]
[1758754561464,29.177415,211.76,211.75,5.42255017]
[1758754561644,29.177415,211.76,211.75,4.72255017]
[1758754561963,29.177415,211.76,211.75,5.42255017]
[1758754563267,2.94823569,211.78,211.75,17.22892561]
[1758754563448,26.0,211.76,211.75,17.22892561]
[1758754564063,2.94823569,211.82,211.75,20.1771613]
[1758754564250,3.17958097,211.81,211.77,2.94823569]
[1758754564452,3.17958097,211.8,211.78,37.18]
[1758754564647,26.0,211.81,211.79,0.7]
[1758754564854,3.18018931,211.8,211.77,2.94823569]
[1758754565154,26.0,211.81,211.78,36.48]
[1758754565359,3.18059077,211.8,211.79,5.42165824]
[1758754566163,6.91554645,211.87,211.79,20.17403954]
[1758754566474,6.91554645,211.87,211.8,36.48]
[1758754566475,2.94823569,211.84,211.8,36.48]
[1758754566677,3.18031284,211.83,211.8,37.18]
[1758754566880,3.18031284,211.82,211.8,36.48]
[1758754567052,2.94823569,211.84,211.8,37.18]
[1758754567248,3.18009029,211.83,211.81,0.7]
[1758754567560,3.18009029,211.82,211.81,4.7212124]
[1758754568667,3.18009029,211.82,211.81,5.4212124]
[1758754568863,3.18009029,211.82,211.81,4.7212124]
[1758754569070,6.12832598,211.82,211.81,4.7212124]
[1758754570551,6.84832598,211.82,211.8,4.7213173]
[1758754570861,6.12832598,211.81,211.8,4.7213173]
[1758754571164,6.12832598,211.81,211.79,4.72165824]
[1758754571371,6.12832598,211.8,211.79,4.72165824]
[1758754571972,6.84832598,211.8,211.78,41.18176587]
[1758754572175,2.94823569,211.79,211.78,41.18176587]
[1758754572356,6.12613465,211.79,211.78,41.18176587]
[1758754572664,6.1260551,211.79,211.78,4.72176587]
[1758754572872,6.8460551,211.79,211.77,4.72207298]
[1758754573166,6.8460551,211.78,211.75,36.46]
[1758754573349,2.94823569,211.77,211.76,4.72232716]
[1758754574641,26.0,211.81,211.76,17.22814506]
[1758754574642,2.94823569,211.79,211.76,17.22814506]
[1758754574843,26.0,211.81,211.77,37.16]
[1758754575058,2.94823569,211.8,211.78,0.7]
[1758754575258,2.94823569,211.8,211.78,4.72188119]
[1758754575857,2.94823569,211.79,211.78,4.72188119]
[1758754576071,6.12618276,211.79,211.78,4.72188119]
[1758754578157,6.12618276,211.79,211.76,52.98814506]
[1758754578477,2.94823569,211.78,211.76,53.68814506]
[1758754578647,2.94823569,211.78,211.76,52.98814506]
[1758754578846,2.94823569,211.78,211.76,53.68814506]
[1758754581461,2.94823569,211.78,211.76,53.70814506]
[1758754581765,2.94823569,211.77,211.76,4.72232716]
[1758754581968,3.59823569,211.77,211.76,4.72232716]
[1758754582472,2.94823569,211.77,211.76,4.72232716]
[1758754583370,2.94823569,211.77,211.76,5.44232716]
[1758754583763,2.94823569,211.77,211.76,4.72232716]
[1758754584587,2.94823569,211.77,211.75,41.18251077]
[1758754584772,2.94823569,211.76,211.75,41.18251077]
[1758754587487,2.94823569,211.76,211.74,4.72273939]
[1758754587786,0.65,211.78,211.74,4.72273939]
[1758754587787,2.94823569,211.75,211.74,4.72273939]
[1758754588081,2.94823569,211.75,211.74,5.44273939]
[1758754588596,2.94823569,211.75,211.74,4.72273939]
[1758754589463,0.65,211.77,211.73,41.18299096]
[1758754589664,2.94823569,211.74,211.73,41.18299096]
[1758754589966,2.94823569,211.74,211.73,41.90299096]
[1758754594768,2.94823569,211.74,211.73,41.18299096]
[1758754595661,6.77151484,211.74,211.68,11.81010963]
[1758754595860,2.94823569,211.7,211.68,11.81010963]
[1758754596056,2.94823569,211.69,211.67,37.18]
[1758754596271,2.94823569,211.68,211.67,37.18]
[1758754596689,2.94823569,211.68,211.67,41.18433504]
[1758754596888,2.94823569,211.68,211.67,4.72433504]
[1758754597566,2.94823569,211.68,211.66,41.18451453]
[1758754597761,2.94823569,211.67,211.66,41.18451453]
[1758754598491,2.94823569,211.67,211.66,41.90451453]
[1758754598865,26.0,211.7,211.66,41.90451453]
[1758754599189,0.65,211.76,211.67,3.66823569]
[1758754599374,2.94823569,211.74,211.68,40.12823569]
[1758754599573,2.94823569,211.74,211.69,37.18]
[1758754599789,2.94823569,211.73,211.7,0.72]
[1758754599981,2.94823569,211.73,211.71,37.18]
[1758754601166,2.94823569,211.73,211.72,4.72321934]
[1758754603390,3.16773608,211.75,211.72,4.72321934]
[1758754603580,2.94823569,211.75,211.73,0.72]
[1758754603784,2.94823569,211.74,211.73,0.72]
[1758754603978,2.94823569,211.74,211.72,4.72321934]
[1758754604180,2.94823569,211.74,211.72,5.44321934]
[1758754604478,2.94823569,211.74,211.72,17.2512677]
[1758754605282,28.94823569,211.74,211.72,17.2512677]
[1758754605985,2.94823569,211.74,211.72,17.2512677]
[1758754606668,3.8176603,211.77,211.72,16.5312677]
[1758754606999,2.94823569,211.73,211.72,4.72321934]
[1758754607165,28.94823569,211.73,211.72,4.72321934]
[1758754607782,2.94823569,211.73,211.72,4.72321934]
[1758754608593,2.94823569,211.73,211.72,5.44321934]
[1758754608792,2.94823569,211.74,211.72,5.44321934]
[1758754608993,2.94823569,211.74,211.73,0.72]
[1758754609201,26.0,211.77,211.73,0.72]
[1758754609202,2.94823569,211.77,211.73,0.72]
[1758754609367,2.94823569,211.77,211.74,36.46]
[1758754609575,2.94823569,211.77,211.75,0.72]
[1758754610184,2.94823569,211.76,211.75,0.72]
[1758754610787,2.94823569,211.76,211.75,5.44255017]
[1758754611277,2.94823569,211.76,211.75,4.72255017]
[1758754612106,2.94823569,211.77,211.75,5.43255017]
[1758754612391,2.94823569,211.77,211.76,0.71]
[1758754612573,2.94823569,211.77,211.75,5.43255017]
[1758754612969,2.94823569,211.77,211.75,4.72255017]
[1758754613191,2.94823569,211.76,211.75,4.72255017]
[1758754616970,2.94823569,211.76,211.75,5.43255017]
[1758754619786,2.94823569,211.76,211.75,4.72255017]
[1758754620686,1.88690141,211.76,211.75,4.72255017]
[1758754622189,1.88690141,211.77,211.75,4.72255017]
[1758754622401,1.88690141,211.77,211.75,5.43255017]
[1758754622696,1.88690141,211.77,211.75,4.72255017]
[1758754622894,1.88690141,211.77,211.75,5.43255017]
[1758754624496,1.88690141,211.77,211.76,0.71]
[1758754625996,3.16955438,211.8,211.76,0.71]
[1758754626215,1.88690141,211.82,211.77,4.72210416]
[1758754626381,1.88690141,211.83,211.78,37.17]
[1758754626581,1.88690141,211.83,211.79,0.71]
[1758754626900,1.88690141,211.83,211.8,36.46]
[1758754627112,1.88690141,211.83,211.81,0.71]
[1758754628189,1.88690141,211.83,211.82,4.72098951]
[1758754628387,5.05553091,211.83,211.82,4.72098951]
[1758754630204,1.88690141,211.83,211.82,4.72098951]
[1758754630779,1.88690141,211.83,211.82,5.43098951]
[1758754630978,1.88690141,211.83,211.82,4.72098951]
[1758754631986,1.88690141,211.83,211.82,5.43098951]
[1758754633603,1.88690141,211.83,211.81,4.7212124]
[1758754633809,1.88690141,211.83,211.81,5.4312124]
[1758754634105,1.88690141,211.83,211.82,0.71]
[1758754634696,1.88690141,211.83,211.81,5.4312124]
[1758754634889,1.88690141,211.83,211.81,4.7212124]
[1758754635107,1.88690141,211.83,211.82,5.43098951]
[1758754635603,1.88690141,211.84,211.82,17.2334633]
[1758754635783,1.88690141,211.84,211.83,0.71]
[1758754636514,1.88690141,211.86,211.83,0.71]
[1758754636815,1.88690141,211.88,211.83,37.15]
[1758754637119,1.88690141,211.88,211.85,16.52112343]
[1758754637610,26.0,211.87,211.86,0.71]
[1758754638116,26.0,211.87,211.86,5.43009817]
[1758754638312,1.88690141,211.88,211.86,4.72009817]
[1758754638531,1.88690141,211.88,211.83,36.44]
[1758754638532,2.57690141,211.87,211.82,48.24198548]
[1758754638703,26.0,211.88,211.83,4.72063499]
[1758754638704,0.69,211.86,211.83,4.72063499]
[1758754638904,0.69,211.85,211.83,4.72063499]
[1758754639905,1.88690141,211.84,211.81,16.52418282]
[1758754640105,1.88690141,211.84,211.81,17.23418282]
[1758754641227,1.88690141,211.82,211.81,16.52418282]
[1758754641728,2.58690141,211.82,211.8,4.72139425]
[1758754641928,1.88690141,211.81,211.8,4.72139425]
[1758754642918,2.58690141,211.81,211.77,36.44]
[1758754643113,1.88690141,211.79,211.78,4.72188119]
[1758754644537,1.88690141,211.8,211.78,4.72188119]
[1758754644716,2.58690141,211.81,211.78,4.72188119]
[1758754644917,1.88690141,211.81,211.78,4.72188119]
[1758754645117,1.88690141,211.81,211.78,5.42188119]
[1758754645435,1.88690141,211.8,211.78,4.72188119]
[1758754647118,1.88690141,211.81,211.79,0.7]
[1758754647325,1.88690141,211.81,211.8,0.7]
[1758754647528,1.88690141,211.81,211.8,5.42143531]
[1758754648029,136.48690141,211.85,211.8,17.2250236]
[1758754648239,0.7,211.85,211.81,0.7]
[1758754648424,1.88690141,211.85,211.81,0.7]
[1758754649034,1.88690141,211.84,211.81,0.7]
[1758754649539,1.88690141,211.84,211.8,52.9650236]
[1758754649727,2.58690141,211.84,211.8,53.6650236]
[1758754649926,1.88690141,211.84,211.81,0.7]
[1758754651037,1.88690141,211.84,211.8,52.9650236]
[1758754651241,1.88690141,211.84,211.8,53.6650236]
[1758754651443,1.88690141,211.83,211.8,53.6650236]
[1758754652034,1.88690141,211.81,211.8,4.72143531]
[1758754653037,1.88690141,211.81,211.77,0.7]
[1758754653238,1.88690141,211.79,211.77,0.7]
[1758754653543,1.88690141,211.8,211.78,4.72188119]
[1758754653722,1.88690141,211.8,211.79,0.7]
[1758754653922,1.88690141,211.81,211.79,0.7]
[1758754654323,1.88690141,211.83,211.8,0.7]
[1758754654559,1.88690141,211.84,211.81,0.7]
[1758754655259,2.58690141,211.84,211.79,37.14]
[1758754655431,1.88690141,211.83,211.79,37.14]
[1758754655750,1.88690141,211.83,211.81,4.7212124]
[1758754655920,1.88690141,211.84,211.82,0.7]
[1758754656317,2.58690141,211.83,211.79,4.72144048]
[1758754656625,1.88690141,211.8,211.76,4.72232716]
[1758754656836,1.88690141,211.78,211.76,4.72232716]
[1758754658133,2.58690141,211.77,211.75,4.7224706]
[1758754658320,1.88690141,211.76,211.75,4.7224706]
[1758754658514,1.88690141,211.76,211.74,4.72275508]
[1758754658723,1.88690141,211.75,211.74,4.72275508]
[1758754659666,1.88690141,211.77,211.74,17.22968811]
[1758754659823,26.0,211.77,211.75,0.7]
[1758754660023,1.88690141,211.79,211.76,16.52814506]
[1758754660223,29.16158034,211.82,211.77,0.7]
[1758754660436,26.0,211.79,211.78,0.7]
[1758754660948,1.88690141,211.79,211.78,0.7]
[1758754661253,1.88690141,211.79,211.76,16.52814506]
[1758754661628,1.88690141,211.79,211.77,0.7]
[1758754661826,1.88690141,211.78,211.76,16.52814506]
[1758754663536,1.88690141,211.77,211.76,16.52814506]
[1758754664350,1.88690141,211.78,211.76,17.22814506]
[1758754669245,27.88690141,211.79,211.77,0.7]
[1758754669840,27.88690141,211.79,211.76,16.52814506]
[1758754669841,27.88690141,211.79,211.78,0.7]
[1758754670035,27.88690141,211.79,211.76,16.52814506]
[1758754670249,27.88690141,211.79,211.76,17.22814506]
[1758754671965,1.88690141,211.79,211.76,17.22814506]
[1758754672656,1.88690141,211.79,211.77,0.7]
[1758754673345,1.88690141,211.79,211.76,16.52814506]
[1758754673545,1.88690141,211.79,211.77,0.7]
[1758754673751,1.88690141,211.79,211.76,16.52814506]
[1758754674066,1.88690141,211.79,211.76,17.22814506]
[1758754675663,134.6,211.84,211.77,0.7]
[1758754675963,31.04927124,211.83,211.78,36.42]
[1758754676167,26.0,211.83,211.79,0.7]
[1758754677040,27.88690141,211.83,211.8,0.7]
[1758754677441,27.88690141,211.83,211.81,4.7212124]
[1758754679683,26.0,211.83,211.81,0.7]
[1758754680052,26.0,211.83,211.82,0.7]
[1758754680772,26.0,211.83,211.8,12.46333079]
[1758754681068,27.88690141,211.83,211.81,0.66]
[1758754682185,27.88690141,211.83,211.82,4.72098951]
[1758754682672,28.94625026,211.83,211.82,4.72098951]
[1758754684275,0.91,211.89,211.82,17.1834633]
[1758754684473,2.94625026,211.87,211.82,17.1834633]
[1758754684664,6.1079548,211.86,211.83,0.66]
[1758754684854,2.94625026,211.86,211.83,0.66]
[1758754685061,29.65625026,211.87,211.83,0.66]
[1758754685274,6.10779014,211.86,211.82,16.5234633]
[1758754685457,3.65625026,211.86,211.82,16.5234633]
[1758754685775,3.65625026,211.86,211.82,17.1834633]
[1758754686765,2.94625026,211.86,211.82,17.1834633]
[1758754687779,3.65625026,211.86,211.82,17.1834633]
[1758754690082,2.94625026,211.86,211.82,16.5234633]
[1758754690260,2.94625026,211.86,211.84,4.7205438]
[1758754692473,2.94625026,211.86,211.84,5.3805438]
[1758754692679,6.10744776,211.87,211.85,0.66]
[1758754693175,6.10744776,211.87,211.84,4.7205438]
[1758754693477,0.2,211.89,211.85,0.66]
[1758754693685,0.2,211.89,211.86,16.52034361]
[1758754693862,0.2,211.89,211.87,3.60625026]
[1758754694279,0.2,211.89,211.88,0.66]
[1758754694785,0.2,211.89,211.88,5.37965263]
[1758754695165,1e-08,211.89,211.88,44.74590289]
[1758754695362,1e-08,211.89,211.88,58.3414969]
[1758754697882,1e-08,211.89,211.88,58.3214969]
[1758754700272,1e-08,211.94,211.88,93.71889164]
[1758754700479,1e-08,211.94,211.93,2.94625026]
[1758754700683,1e-08,211.94,211.93,52.94184427]
[1758754700856,1e-08,211.97,211.94,13.59559401]
[1758754701060,1e-08,211.97,211.96,2.94625026]
[1758754701484,1e-08,211.97,211.96,8.36412155]
[1758754701997,1e-08,211.98,211.96,8.36412155]
[1758754702163,1e-08,211.98,211.97,40.04625026]
[1758754703482,1e-08,211.98,211.97,44.76389898]
[1758754704384,0.1,212.02,211.97,56.55802078]
[1758754704586,0.1,212.02,212.01,2.94625026]
[1758754704765,0.1,212.02,212.01,39.34625026]
[1758754704960,0.1,212.02,212.01,40.04625026]
[1758754705374,0.1,212.02,212.01,44.0630089]
[1758754706261,0.1,212.02,212.01,7.6630089]
[1758754706492,0.1,212.02,212.01,44.0430089]
[1758754707281,0.1,212.02,212.01,41.09675864]
[1758754712368,0.1,212.02,212.01,44.7430089]
[1758754713596,0.1,212.02,212.01,41.09675864]
[1758754717303,0.1,212.02,212.01,4.71675864]
[1758754717474,0.76,212.02,212.01,41.09675864]
[1758754717678,0.1,212.02,212.01,41.09675864]
[1758754723585,0.1,212.02,212.01,44.7430089]
[1758754724915,0.2,212.05,212.01,44.7430089]
[1758754725096,0.2,212.05,212.04,2.94625026]
[1758754725287,0.2,212.05,212.04,39.30625026]
[1758754725606,0.2,212.05,212.04,36.36]
[1758754725918,0.2,212.05,212.04,37.06]
[1758754726417,0.2,212.05,212.04,36.36]
[1758754727200,0.2,212.05,212.04,41.0760913]
[1758754729412,0.2,212.05,212.04,41.7760913]
[1758754731411,0.2,212.05,212.04,44.72234156]
[1758754731912,0.2,212.05,212.04,41.7760913]
[1758754733810,1e-08,212.05,212.04,44.72234156]
[1758754734591,1e-08,212.05,212.04,46.6129241]
[1758754739511,0.2,212.06,212.04,46.6129241]
[1758754739512,1e-08,212.06,212.04,46.6129241]
[1758754739702,1e-08,212.06,212.05,3.61625026]
[1758754740103,0.1,212.09,212.05,3.61625026]
[1758754740104,0.1,212.09,212.06,13.59559401]
[1758754740416,0.1,212.09,212.08,2.94625026]
[1758754740731,0.1,212.12,212.09,4.71497948]
[1758754740899,0.1,212.12,212.1,39.30625026]
[1758754741095,0.1,212.12,212.1,40.01625026]
[1758754742711,0.1,212.12,212.1,43.66448096]
[1758754743721,0.1,212.12,212.11,1.87972377]
[1758754744813,0.1,212.12,212.11,6.59425868]
[1758754745019,0.1,212.12,212.11,4.71453491]
[1758754745902,0.1,212.12,212.11,41.05453491]
[1758754748310,0.81,212.12,212.11,41.05453491]
[1758754748502,0.1,212.12,212.11,41.05453491]
[1758754749599,0.1,212.12,212.11,42.93425868]
[1758754749824,0.1,212.12,212.11,43.64425868]
[1758754751312,0.1,212.12,212.11,42.93425868]
[1758754751628,0.1,212.12,212.11,41.05453491]
[1758754752824,0.1,212.12,212.11,4.71453491]
[1758754753027,0.1,212.12,212.11,41.05453491]
[1758754755419,0.1,212.12,212.11,4.71453491]
[1758754755619,0.81,212.12,212.11,41.05453491]
[1758754757018,0.1,212.12,212.11,41.05453491]
[1758754760949,0.1,212.12,212.11,41.03453491]
[1758754761821,0.1,212.12,212.11,43.63425868]
[1758754762641,0.1,212.12,212.11,41.75453491]
[1758754766124,0.1,212.12,212.11,41.03453491]
[1758754772029,2.65972377,212.12,212.11,4.71453491]
[1758754772229,28.65972377,212.12,212.1,36.32]
[1758754772429,2.55972377,212.11,212.1,36.32]
[1758754773744,2.55972377,212.11,212.1,41.03475719]
[1758754774753,2.55972377,212.11,212.1,36.32]
[1758754775753,2.55972377,212.11,212.1,41.03475719]
[1758754780227,1.87972377,212.11,212.1,41.03475719]
[1758754782949,28.65972377,212.12,212.1,41.03475719]
[1758754784052,27.97972377,212.12,212.1,41.03475719]
[1758754785041,28.65972377,212.12,212.1,41.03475719]
[1758754785438,27.97972377,212.12,212.1,41.03475719]
[1758754789854,27.97972377,212.12,212.1,41.75475719]
[1758754790064,27.97972377,212.12,212.1,41.03475719]
[1758754791358,2.54972377,212.11,212.1,36.32]
[1758754791565,2.54972377,212.11,212.09,36.32]
[1758754791750,2.54972377,212.1,212.09,36.32]
[1758754792151,1.87972377,212.1,212.09,36.32]
[1758754792353,1.87972377,212.1,212.09,41.03497948]
[1758754793037,1.87972377,212.1,212.09,4.71497948]
[1758754793749,2.54972377,212.1,212.09,4.71497948]
[1758754794266,28.54972377,212.1,212.08,4.71518011]
[1758754794462,1.87972377,212.09,212.07,36.32]
[1758754794652,2.54972377,212.08,212.07,36.32]
[1758754794837,1.87972377,212.08,212.07,36.32]
[1758754795560,1.87972377,212.08,212.07,36.98]
[1758754795859,27.87972377,212.09,212.07,41.69542415]
[1758754796065,27.97972377,212.12,212.08,0.66]
[1758754796360,27.97972377,212.12,212.09,36.3]
[1758754796568,27.97972377,212.12,212.1,0.66]
[1758754796755,26.1,212.12,212.1,0.66]
[1758754796956,26.1,212.12,212.11,0.66]
[1758754797743,26.1,212.12,212.1,4.71475719]
[1758754797943,26.1,212.12,212.11,0.66]
[1758754798244,26.1,212.12,212.11,36.96]
[1758754799942,26.1,212.12,212.11,41.67453491]
[1758754799943,0.1,212.12,212.11,41.67453491]
[1758754805146,0.1,212.12,212.11,41.01453491]
[1758754805550,0.1,212.12,212.11,41.69453491]
[1758754807153,0.1,212.12,212.11,41.01453491]
[1758754807561,0.1,212.12,212.11,41.69453491]
[1758754808686,0.1,212.12,212.11,4.71453491]
[1758754808884,0.81,212.12,212.11,4.71453491]
[1758754809189,0.1,212.12,212.11,41.01453491]
[1758754809372,0.1,212.12,212.11,41.69453491]
[1758754809550,1e-08,212.12,212.11,44.63154846]
[1758754809870,1e-08,212.12,212.11,58.22714247]
[1758754810078,1e-08,212.12,212.11,60.11701042]
[1758754815775,1e-08,212.15,212.11,71.90334769]
[1758754816089,1e-08,212.15,212.14,16.53260756]
[1758754816261,1e-08,212.15,212.14,52.81260756]
[1758754816587,1e-08,212.15,212.14,53.49260756]
[1758754816791,1e-08,212.15,212.14,58.20647576]
[1758754817086,1e-08,212.15,212.14,60.09607588]
[1758754821910,0.2,212.17,212.14,60.09607588]
[1758754821911,1e-08,212.17,212.15,13.59559401]
[1758754822209,1e-08,212.17,212.16,52.81260756]
[1758754822397,1e-08,212.17,212.16,53.50260756]
[1758754822577,1e-08,212.17,212.16,55.39193992]
[1758754823780,1e-08,212.17,212.16,60.10536375]
[1758754825399,1e-08,212.17,212.16,6.60275619]
[1758754825592,1e-08,212.17,212.16,40.99342383]
[1758754825912,1e-08,212.17,212.16,44.62043738]
[1758754826314,1e-08,212.17,212.16,58.79243823]
[1758754826482,1e-08,212.17,212.16,72.38803224]
[1758754829589,1e-08,212.17,212.16,71.69803224]